lending/lending_fUSD_20240509
["ID","MTS","AMOUNT","RATE_DAILY","PERIOD"]
[326679556,1715217067670,-500.0,0.00028493,5]
[326679557,1715217067682,-181.05,0.00028493,5]
[326679558,1715217067696,-500.0,0.00028493,5]
[326679559,1715217067717,-500.0,0.00028493,5]
[326679560,1715217067731,-500.0,0.00028493,5]
[326679561,1715217067745,-500.0,0.00028493,5]
[326679562,1715217067758,-500.0,0.00028493,5]
[326679563,1715217067779,-500.0,0.00028493,5]
[326679564,1715217067792,-500.0,0.00028493,5]
[326679565,1715217067804,-500.0,0.00028493,5]
[326679566,1715217067825,-500.0,0.00028493,5]
[326679567,1715217067835,-500.0,0.00028493,5]
[326679568,1715217067849,-500.0,0.00028493,5]
[326679569,1715217067860,-500.0,0.00028493,5]
[326679570,1715217067872,-500.0,0.00028493,5]
[326679571,1715217067882,-500.0,0.00028493,5]
[326679572,1715217067893,-500.0,0.00028493,5]
[326679573,1715217067903,-500.0,0.00028493,5]
[326679574,1715217067915,-500.0,0.00028493,5]
[326679575,1715217067927,-500.0,0.00028493,5]
[326679576,1715217067937,-500.0,0.00028493,5]
[326679577,1715217067950,-500.0,0.00028493,5]
[326679578,1715217067962,-500.0,0.00028493,5]
[326679579,1715217067977,-500.0,0.00028493,5]
[326679580,1715217067991,-500.0,0.00028493,5]
[326679581,1715217068000,-500.0,0.00028493,5]
[326679582,1715217068012,-500.0,0.00028493,5]
[326679583,1715217068023,-500.0,0.00028493,5]
[326679584,1715217068037,-1398.17,0.00028493,5]
[326679585,1715217068046,-500.0,0.00028493,5]
[326679586,1715217068058,-500.0,0.00028493,5]
[326679587,1715217068068,-500.0,0.00028493,5]
[326679588,1715217068078,-500.0,0.00028493,5]
[326679589,1715217068089,-500.0,0.00028493,5]
[326679590,1715217068101,-500.0,0.00028493,5]
[326679591,1715217068117,-1096.98,0.00028493,5]
[326679592,1715217068135,-500.0,0.00028493,5]
[326679593,1715217068145,-500.0,0.00028493,5]
[326679594,1715217068155,-500.0,0.00028493,5]
[326679595,1715217068172,-500.0,0.00028493,5]
[326679596,1715217068184,-500.0,0.00028493,5]
[326679597,1715217068198,-500.0,0.00028493,5]
[326679598,1715217068213,-500.0,0.00028493,5]
[326679599,1715217068225,-1343.49,0.00028493,5]
[326679600,1715217068246,-500.0,0.00028493,5]
[326679601,1715217068256,-500.0,0.00028493,5]
[326679602,1715217068271,-500.0,0.00028493,5]
[326679603,1715217068286,-589.81835183,0.00028493,5]
[326679604,1715217068309,-500.0,0.00028493,5]
[326679605,1715217068319,-500.0,0.00028493,5]
[326679606,1715217068331,-500.0,0.00028493,5]
[326679607,1715217068341,-500.0,0.00028493,5]
[326679608,1715217068362,-500.0,0.00028493,5]
[326679609,1715217068373,-500.0,0.00028493,5]
[326679610,1715217068384,-500.0,0.00028493,5]
[326679611,1715217068397,-500.0,0.00028493,5]
[326679612,1715217068408,-734.71,0.00028493,5]
[326679613,1715217068423,-500.0,0.00028493,5]
[326679614,1715217068436,-500.0,0.00028493,5]
[326679615,1715217068458,-563.87239061,0.00028493,5]
[326679616,1715217068473,-500.0,0.00028493,5]
[326679617,1715217068498,-500.0,0.00028493,5]
[326679618,1715217068510,-500.0,0.00028493,5]
[326679619,1715217068523,-562.96,0.00028493,5]
[326679620,1715217068534,-500.0,0.00028493,5]
[326679621,1715217068544,-500.0,0.00028493,5]
[326679622,1715217068555,-500.0,0.00028493,5]
[326679623,1715217068565,-500.0,0.00028493,5]
[326679624,1715217068584,-558.33,0.00028493,5]
[326679625,1715217068608,-500.0,0.00028493,5]
[326679626,1715217068618,-500.0,0.00028493,5]
[326679627,1715217068632,-500.0,0.00028493,5]
[326679628,1715217068643,-328.30880425,0.00028493,5]
[326679629,1715217068654,-500.0,0.00028493,5]
[326679630,1715217068664,-635.42,0.00028493,5]
[326679631,1715217068674,-388.38,0.00028493,5]
[326679632,1715217068696,-500.0,0.00028493,5]
[326679633,1715217068708,-151.0,0.00028493,7]
[326679634,1715217068727,-150.0,0.00028493,5]
[326679635,1715217068738,-500.0,0.00028493,5]
[326679636,1715217068754,-500.0,0.00028493,5]
[326679637,1715217068764,-500.0,0.00028493,5]
[326679638,1715217068777,-550.22,0.00028493,5]
[326679639,1715217068788,-500.0,0.00028493,5]
[326679640,1715217068815,-500.0,0.00028493,5]
[326679641,1715217068826,-500.0,0.00028493,5]
[326679642,1715217068836,-522.97,0.00028493,5]
[326679643,1715217068847,-500.0,0.00028493,5]
[326679644,1715217068860,-151.0,0.00028493,7]
[326679645,1715217068870,-500.0,0.00028493,5]
[326679646,1715217068888,-500.0,0.00028493,5]
[326679647,1715217068907,-500.0,0.00028493,5]
[326679648,1715217068917,-608.6,0.00028493,5]
[326679649,1715217068929,-500.0,0.00028493,5]
[326679650,1715217068941,-500.0,0.00028493,5]
[326679651,1715217068952,-500.0,0.00028493,5]
[326679652,1715217068963,-500.0,0.00028493,5]
[326679653,1715217068977,-500.0,0.00028493,5]
[326679654,1715217069002,-1372.69,0.00028493,5]
[326679655,1715217069013,-500.0,0.00028493,5]
[326679656,1715217069025,-575.31,0.00028493,5]
[326679657,1715217069037,-795.79,0.00028493,5]
[326679658,1715217069052,-500.0,0.00028493,5]
[326679659,1715217069068,-500.0,0.00028493,5]
[326679660,1715217069082,-500.0,0.00028493,5]
[326679661,1715217069093,-507.83,0.00028493,5]
[326679662,1715217069104,-500.0,0.00028493,5]
[326679663,1715217069121,-500.0,0.00028493,5]
[326679664,1715217069143,-500.0,0.00028493,5]
[326679665,1715217069154,-500.0,0.00028493,5]
[326679666,1715217069169,-601.96,0.00028493,5]
[326679667,1715217069184,-553.96,0.00028493,5]
[326679668,1715217069199,-500.0,0.00028493,5]
[326679669,1715217069210,-500.0,0.00028493,5]
[326679670,1715217069237,-151.0,0.00028493,7]
[326679671,1715217069250,-500.0,0.00028493,5]
[326679672,1715217069272,-645.98,0.00028493,5]
[326679673,1715217069283,-500.0,0.00028493,5]
[326679674,1715217069294,-500.0,0.00028493,5]
[326679675,1715217069305,-1277.74,0.00028493,5]
[326679676,1715217069317,-500.0,0.00028493,5]
[326679677,1715217069330,-500.0,0.00028493,5]
[326679678,1715217069340,-500.0,0.00028493,5]
[326679679,1715217069360,-500.0,0.00028493,5]
[326679680,1715217069382,-500.0,0.00028493,5]
[326679681,1715217069393,-500.0,0.00028493,5]
[326679682,1715217069406,-500.0,0.00028493,5]
[326679683,1715217069415,-500.0,0.00028493,5]
[326679684,1715217069428,-500.0,0.00028493,5]
[326679685,1715217069438,-555.35,0.00028493,5]
[326679686,1715217069449,-500.0,0.00028493,5]
[326679687,1715217069459,-795.38,0.00028493,5]
[326679688,1715217069473,-500.0,0.00028493,5]
[326679689,1715217069485,-1302.13,0.00028493,5]
[326679690,1715217069499,-500.0,0.00028493,5]
[326679691,1715217069510,-500.0,0.00028493,5]
[326679692,1715217069529,-500.0,0.00028493,5]
[326679693,1715217069550,-500.0,0.00028493,5]
[326679694,1715217069567,-500.0,0.00028493,5]
[326679695,1715217069582,-500.0,0.00028493,5]
[326679696,1715217069598,-500.0,0.00028493,5]
[326679697,1715217069614,-1151.59,0.00028493,5]
[326679698,1715217069631,-500.0,0.00028493,5]
[326679699,1715217069645,-500.0,0.00028493,5]
[326679700,1715217069674,-500.0,0.00028493,5]
[326679701,1715217069686,-500.0,0.00028493,5]
[326679702,1715217069699,-500.0,0.00028493,5]
[326679703,1715217069713,-1280.79,0.00028493,5]
[326679704,1715217069725,-500.0,0.00028493,5]
[326679705,1715217069740,-500.0,0.00028493,5]
[326679706,1715217069760,-500.0,0.00028493,5]
[326679707,1715217069774,-916.33,0.00028493,5]
[326679708,1715217069787,-500.0,0.00028493,5]
[326679709,1715217069801,-500.0,0.00028493,5]
[326679710,1715217069813,-567.03,0.00028493,5]
[326679711,1715217069826,-500.0,0.00028493,5]
[326679712,1715217069839,-500.0,0.00028493,5]
[326679713,1715217069853,-500.0,0.00028493,5]
[326679714,1715217069865,-500.0,0.00028493,5]
[326679715,1715217069883,-500.0,0.00028493,5]
[326679716,1715217069895,-500.0,0.00028493,5]
[326679717,1715217069905,-500.0,0.00028493,5]
[326679718,1715217069920,-1695.71,0.00028493,5]
[326679719,1715217069931,-815.11,0.00028493,5]
[326679720,1715217069954,-500.0,0.00028493,5]
[326679721,1715217069966,-500.0,0.00028493,5]
[326679722,1715217069980,-500.0,0.00028493,5]
[326679723,1715217069992,-959.07,0.00028493,5]
[326679724,1715217070009,-500.0,0.00028493,5]
[326679725,1715217070028,-500.0,0.00028493,5]
[326679726,1715217070057,-601.43929115,0.00028493,5]
[326679727,1715217070069,-500.0,0.00028493,5]
[326679728,1715217070081,-334.48029932,0.00028493,5]
[326679729,1715217070093,-500.0,0.00028493,5]
[326679730,1715217070105,-907.36,0.00028493,5]
[326679731,1715217070118,-500.0,0.00028493,5]
[326679732,1715217070136,-500.0,0.00028493,5]
[326679733,1715217070151,-500.0,0.00028493,5]
[326679734,1715217070165,-500.0,0.00028493,5]
[326679735,1715217070176,-902.04,0.00028493,5]
[326679736,1715217070334,-500.0,0.00028493,5]
[326679737,1715217070346,-500.0,0.00028493,5]
[326679738,1715217070361,-500.0,0.00028493,5]
[326679739,1715217070373,-500.0,0.00028493,5]
[326679740,1715217070386,-647.36,0.00028493,5]
[326679741,1715217070398,-500.0,0.00028493,5]
[326679742,1715217070409,-500.0,0.00028493,5]
[326679743,1715217070422,-500.0,0.00028493,5]
[326679744,1715217070433,-500.0,0.00028493,5]
[326679745,1715217070455,-500.0,0.00028493,5]
[326679746,1715217070472,-573.32,0.00028493,5]
[326679747,1715217070483,-500.0,0.00028493,5]
[326679748,1715217070495,-500.0,0.00028493,5]
[326679749,1715217070518,-500.0,0.00028493,5]
[326679750,1715217070537,-500.0,0.00028493,5]
[326679751,1715217070550,-500.0,0.00028493,5]
[326679752,1715217070564,-500.0,0.00028493,5]
[326679753,1715217070580,-500.0,0.00028493,5]
[326679754,1715217070591,-1464.38,0.00028493,5]
[326679755,1715217070609,-500.0,0.00028493,5]
[326679756,1715217070621,-500.0,0.00028493,5]
[326679757,1715217070642,-500.0,0.00028493,5]
[326679758,1715217070653,-1158.24,0.00028493,5]
[326679759,1715217070668,-500.0,0.00028493,5]
[326679760,1715217070681,-500.0,0.00028493,5]
[326679761,1715217070692,-1384.53,0.00028493,5]
[326679762,1715217070706,-500.0,0.00028493,5]
[326679763,1715217070718,-492.04539352,0.00028493,5]
[326679764,1715217070729,-500.0,0.00028493,5]
[326679765,1715217070744,-500.0,0.00028493,5]
[326679766,1715217070756,-500.0,0.00028493,5]
[326679767,1715217070767,-500.0,0.00028493,5]
[326679768,1715217070784,-500.0,0.00028493,5]
[326679769,1715217070797,-500.0,0.00028493,5]
[326679770,1715217070814,-700.53,0.00028493,5]
[326679771,1715217070829,-863.3,0.00028493,5]
[326679772,1715217070840,-500.0,0.00028493,5]
[326679773,1715217070851,-500.0,0.00028493,5]
[326679774,1715217070873,-500.0,0.00028493,5]
[326679775,1715217070886,-500.0,0.00028493,5]
[326679776,1715217070904,-500.0,0.00028493,5]
[326679777,1715217070915,-1984.81,0.00028493,5]
[326679778,1715217070930,-500.0,0.00028493,5]
[326679779,1715217070945,-500.0,0.00028493,5]
[326679780,1715217070955,-1956.29,0.00028493,5]
[326679781,1715217070966,-500.0,0.00028493,5]
[326679782,1715217070977,-1913.82,0.00028493,5]
[326679783,1715217070992,-1144.51,0.00028493,5]
[326679784,1715217071015,-3582.48,0.00028493,5]
[326679785,1715217071028,-566.56796117,0.00028493,5]
[326679786,1715217071045,-500.0,0.00028493,5]
[326679787,1715217071060,-500.0,0.00028493,5]
[326679788,1715217071074,-500.0,0.00028493,5]
[326679789,1715217071087,-804.16,0.00028493,5]
[326679790,1715217071099,-375.93,0.00028493,5]
[326679791,1715217071114,-500.0,0.00028493,5]
[326679792,1715217071132,-500.0,0.00028493,5]
[326679793,1715217071142,-500.0,0.00028493,5]
[326679794,1715217071161,-1485.56,0.00028493,5]
[326679795,1715217071178,-857.49,0.00028493,5]
[326679796,1715217071190,-535.1,0.00028493,5]
[326679797,1715217071205,-500.0,0.00028493,5]
[326679798,1715217071215,-500.0,0.00028493,5]
[326679799,1715217071225,-720.85,0.00028493,5]
[326679800,1715217071239,-500.0,0.00028493,5]
[326679801,1715217071265,-1630.34,0.00028493,5]
[326679802,1715217071277,-500.0,0.00028493,5]
[326679803,1715217071287,-934.0,0.00028493,5]
[326679804,1715217071299,-500.0,0.00028493,5]
[326679805,1715217071329,-528.7,0.00028493,5]
[326679806,1715217071349,-500.0,0.00028493,5]
[326679807,1715217071369,-684.85,0.00028493,5]
[326679808,1715217071380,-500.0,0.00028493,5]
[326679809,1715217071390,-1024.94,0.00028493,5]
[326679810,1715217071403,-1538.77,0.00028493,5]
[326679811,1715217071417,-953.11,0.00028493,5]
[326679812,1715217071430,-500.0,0.00028493,5]
[326679813,1715217071443,-500.0,0.00028493,5]
[326679814,1715217071458,-500.0,0.00028493,5]
[326679815,1715217071480,-500.0,0.00028493,5]
[326679816,1715217071502,-500.0,0.00028493,5]
[326679817,1715217071513,-500.0,0.00028493,5]
[326679818,1715217071540,-630.02,0.00028493,5]
[326679819,1715217071555,-500.0,0.00028493,5]
[326679820,1715217071567,-784.04,0.00028493,5]
[326679821,1715217071578,-1107.86,0.00028493,5]
[326679822,1715217071598,-907.7,0.00028493,5]
[326679823,1715217071609,-1670.29,0.00028493,5]
[326679824,1715217071619,-500.0,0.00028493,5]
[326679825,1715217071629,-638.75,0.00028493,5]
[326679826,1715217071640,-523.8,0.00028493,5]
[326679827,1715217071665,-500.0,0.00028493,5]
[326679828,1715217071679,-500.0,0.00028493,5]
[326679829,1715217071704,-500.0,0.00028493,5]
[326679830,1715217071723,-500.0,0.00028493,5]
[326679831,1715217071734,-500.0,0.00028493,5]
[326679832,1715217071748,-500.0,0.00028493,5]
[326679833,1715217071767,-500.0,0.00028493,5]
[326679834,1715217071779,-500.0,0.00028493,5]
[326679835,1715217071789,-2949.77,0.00028493,5]
[326679836,1715217071803,-500.0,0.00028493,5]
[326679837,1715217071824,-500.0,0.00028493,5]
[326679838,1715217071840,-2477.37,0.00028493,5]
[326679839,1715217071851,-500.0,0.00028493,5]
[326679840,1715217071866,-2516.85,0.00028493,5]
[326679841,1715217071879,-10878.55,0.00028493,5]
[326679842,1715217071890,-762.7,0.00028493,5]
[326679843,1715217071904,-2275.69,0.00028493,5]
[326679844,1715217071920,-500.0,0.00028493,5]
[326679845,1715217071931,-1169.7,0.00028493,5]
[326679846,1715217071943,-500.0,0.00028493,5]
[326679847,1715217071955,-969.64,0.00028493,5]
[326679848,1715217071968,-10556.37,0.00028493,5]
[326679849,1715217071978,-500.0,0.00028493,5]
[326679850,1715217071989,-500.0,0.00028493,5]
[326679851,1715217072002,-954.09,0.00028493,5]
[326679852,1715217072017,-500.0,0.00028493,5]
[326679853,1715217072027,-500.0,0.00028493,5]
[326679854,1715217072037,-500.0,0.00028493,5]
[326679855,1715217072047,-500.0,0.00028493,5]
[326679856,1715217072060,-500.0,0.00028493,5]
[326679857,1715217072071,-16637.32,0.00028493,5]
[326679858,1715217072082,-1462.31,0.00028493,5]
[326679859,1715217072092,-500.0,0.00028493,5]
[326679860,1715217072120,-1812.01,0.00028493,5]
[326679861,1715217072136,-500.0,0.00028493,5]
[326679862,1715217072147,-500.0,0.00028493,5]
[326679863,1715217072163,-1021.9,0.00028493,5]
[326679864,1715217072175,-1423.55,0.00028493,5]
[326679865,1715217072185,-514.28,0.00028493,5]
[326679866,1715217072197,-500.0,0.00028493,5]
[326679867,1715217072207,-1438.25,0.00028493,5]
[326679868,1715217072242,-500.0,0.00028493,5]
[326679869,1715217072253,-2212.01,0.00028493,5]
[326679870,1715217072263,-1000.8,0.00028493,5]
[326679871,1715217072280,-500.0,0.00028493,5]
[326679872,1715217072300,-537.14,0.00028493,5]
[326679873,1715217072316,-500.0,0.00028493,5]
[326679874,1715217072327,-878.58,0.00028493,5]
[326679875,1715217072337,-500.0,0.00028493,5]
[326679876,1715217072349,-500.0,0.00028493,5]
[326679877,1715217072374,-500.0,0.00028493,5]
[326679878,1715217072384,-500.0,0.00028493,5]
[326679879,1715217072396,-1091.17,0.00028493,5]
[326679880,1715217072431,-612.23,0.00028493,5]
[326679881,1715217072443,-500.0,0.00028493,5]
[326679882,1715217072457,-1004.74,0.00028493,5]
[326679883,1715217072473,-500.0,0.00028493,5]
[326679884,1715217072492,-500.0,0.00028493,5]
[326679885,1715217072509,-231.51,0.00028493,5]
[326679886,1715217072520,-500.0,0.00028493,5]
[326679887,1715217072531,-1672.04,0.00028493,5]
[326679888,1715217072542,-500.0,0.00028493,5]
[326679889,1715217072555,-500.0,0.00028493,5]
[326679890,1715217072569,-710.63,0.00028493,5]
[326679891,1715217072580,-644.2920744,0.00028493,5]
[326679892,1715217072594,-500.0,0.00028493,5]
[326679893,1715217072608,-500.0,0.00028493,5]
[326679894,1715217072619,-546.72,0.00028493,5]
[326679895,1715217072642,-500.0,0.00028493,5]
[326679896,1715217072654,-500.0,0.00028493,5]
[326679897,1715217072668,-4543.04,0.00028493,5]
[326679898,1715217072682,-1514.57,0.00028493,5]
[326679899,1715217072694,-870.56,0.00028493,5]
[326679900,1715217072720,-500.0,0.00028493,5]
[326679901,1715217072731,-500.0,0.00028493,5]
[326679902,1715217072741,-4350.99,0.00028493,5]
[326679903,1715217072755,-500.0,0.00028493,5]
[326679904,1715217072769,-500.0,0.00028493,5]
[326679905,1715217072787,-500.0,0.00028493,5]
[326679906,1715217072799,-500.0,0.00028493,5]
[326679907,1715217072809,-676.45,0.00028493,5]
[326679908,1715217072829,-500.0,0.00028493,5]
[326679909,1715217072841,-500.0,0.00028493,5]
[326679910,1715217072858,-500.0,0.00028493,5]
[326679911,1715217072870,-672.2,0.00028493,5]
[326679912,1715217072883,-1015.13,0.00028493,5]
[326679913,1715217072905,-500.0,0.00028493,5]
[326679914,1715217072921,-504.67,0.00028493,5]
[326679915,1715217072938,-835.82,0.00028493,5]
[326679916,1715217072951,-500.0,0.00028493,5]
[326679917,1715217072965,-500.0,0.00028493,5]
[326679918,1715217072981,-951.35,0.00028493,5]
[326679919,1715217072991,-500.0,0.00028493,5]
[326679920,1715217073015,-500.0,0.00028493,5]
[326679921,1715217073027,-500.0,0.00028493,5]
[326679922,1715217073047,-500.0,0.00028493,5]
[326679923,1715217073061,-500.0,0.00028493,5]
[326679924,1715217073073,-500.0,0.00028493,5]
[326679925,1715217073083,-500.0,0.00028493,5]
[326679926,1715217073103,-500.0,0.00028493,5]
[326679927,1715217073115,-2089.58,0.00028493,5]
[326679928,1715217073134,-500.0,0.00028493,5]
[326679929,1715217073147,-500.0,0.00028493,5]
[326679930,1715217073158,-500.0,0.00028493,5]
[326679931,1715217073168,-605.84,0.00028493,5]
[326679932,1715217073180,-3153.21,0.00028493,5]
[326679933,1715217073190,-1066.63,0.00028493,5]
[326679934,1715217073202,-874.19,0.00028493,5]
[326679935,1715217073214,-500.0,0.00028493,5]
[326679936,1715217073225,-3013.15,0.00028493,5]
[326679937,1715217073237,-500.0,0.00028493,5]
[326679938,1715217073247,-500.0,0.00028493,5]
[326679939,1715217073260,-500.0,0.00028493,5]
[326679940,1715217073273,-151.0,0.00028493,7]
[326679941,1715217073289,-637.88,0.00028493,5]
[326679942,1715217073299,-500.0,0.00028493,5]
[326679943,1715217073310,-1058.16,0.00028493,5]
[326679944,1715217073321,-960.86,0.00028493,5]
[326679945,1715217073336,-500.0,0.00028493,5]
[326679946,1715217073349,-500.0,0.00028493,5]
[326679947,1715217073363,-635.27,0.00028493,5]
[326679948,1715217073373,-1059.25,0.00028493,5]
[326679949,1715217073386,-500.0,0.00028493,5]
[326679950,1715217073399,-951.28,0.00028493,5]
[326679951,1715217073412,-151.0,0.00028493,7]
[326679952,1715217073423,-500.0,0.00028493,5]
[326679953,1715217073436,-746.43,0.00028493,5]
[326679954,1715217073448,-1308.8,0.00028493,5]
[326679955,1715217073459,-1141.08,0.00028493,5]
[326679956,1715217073469,-500.0,0.00028493,5]
[326679957,1715217073480,-500.0,0.00028493,5]
[326679958,1715217073492,-424.77118853,0.00028493,5]
[326679959,1715217073513,-6717.88,0.00028493,5]
[326679960,1715217073530,-500.0,0.00028493,5]
[326679961,1715217073544,-500.0,0.00028493,5]
[326679962,1715217073555,-500.0,0.00028493,5]
[326679963,1715217073565,-500.0,0.00028493,5]
[326679964,1715217073575,-853.36,0.00028493,5]
[326679965,1715217073588,-500.0,0.00028493,5]
[326679966,1715217073598,-500.0,0.00028493,5]
[326679967,1715217073612,-500.0,0.00028493,5]
[326679968,1715217073622,-670.38,0.00028493,5]
[326679969,1715217073633,-500.0,0.00028493,5]
[326679970,1715217073645,-794.95,0.00028493,5]
[326679971,1715217073660,-500.0,0.00028493,2]
[326679972,1715217073682,-530.06,0.00028493,5]
[326679973,1715217073699,-500.0,0.00028493,5]
[326679974,1715217073710,-500.0,0.00028493,5]
[326679975,1715217073720,-740.12,0.00028493,5]
[326679976,1715217073733,-500.0,0.00028493,5]
[326679977,1715217073744,-1056.54,0.00028493,5]
[326679978,1715217073755,-602.84,0.00028493,5]
[326679979,1715217073780,-500.0,0.00028493,5]
[326679980,1715217073797,-9852.4,0.00028493,5]
[326679981,1715217073807,-1013.63,0.00028493,5]
[326679982,1715217073817,-794.56,0.00028493,5]
[326679983,1715217073835,-500.0,0.00028493,5]
[326679984,1715217073846,-568.39,0.00028493,5]
[326679985,1715217073859,-500.0,0.00028493,5]
[326679986,1715217073874,-152.94,0.00028493,5]
[326679987,1715217073890,-500.0,0.00028493,5]
[326679988,1715217073904,-500.0,0.00028493,5]
[326679989,1715217073915,-500.0,0.00028493,5]
[326679990,1715217073934,-1471.39,0.00028493,5]
[326679991,1715217073948,-571.33,0.00028493,5]
[326679992,1715217073958,-500.0,0.00028493,5]
[326679993,1715217073974,-500.0,0.00028493,5]
[326679994,1715217073985,-500.0,0.00028493,5]
[326679995,1715217073995,-640.47287084,0.00028493,5]
[326679996,1715217074008,-940.42,0.00028493,5]
[326679997,1715217074024,-500.0,0.00028493,5]
[326679998,1715217074034,-164.26,0.00028493,5]
[326679999,1715217074049,-151.0,0.00028493,7]
[326680000,1715217074061,-151.0,0.00028493,7]
[326680001,1715217074075,-1223.54,0.00028493,5]
[326680002,1715217074088,-619.57,0.00028493,5]
[326680003,1715217074099,-500.0,0.00028493,5]
[326680004,1715217074250,-651.06,0.00028493,5]
[326680005,1715217074261,-500.0,0.00028493,5]
[326680006,1715217074272,-860.42,0.00028493,5]
[326680007,1715217074283,-1430.73,0.00028493,5]
[326680008,1715217074294,-676.9,0.00028493,5]
[326680009,1715217074303,-151.0,0.00028493,7]
[326680010,1715217074314,-1926.26,0.00028493,5]
[326680011,1715217074332,-1067.81,0.00028493,5]
[326680012,1715217074344,-950.96,0.00028493,5]
[326680013,1715217074354,-1353.05,0.00028493,5]
[326680014,1715217074368,-151.0,0.00028493,7]
[326680015,1715217074388,-608.42,0.00028493,5]
[326680016,1715217074399,-500.0,0.00028493,5]
[326680017,1715217074425,-500.0,0.00028493,5]
[326680018,1715217074435,-1872.91,0.00028493,5]
[326680019,1715217074446,-588.97,0.00028493,5]
[326680020,1715217074464,-500.0,0.00028493,5]
[326680021,1715217074477,-1589.67,0.00028493,5]
[326680022,1715217074487,-718.73,0.00028493,5]
[326680023,1715217074499,-500.0,0.00028493,5]
[326680024,1715217074515,-8209.94,0.00028493,5]
[326680025,1715217074525,-500.0,0.00028493,5]
[326680026,1715217074535,-1821.63,0.00028493,5]
[326680027,1715217074549,-975.54,0.00028493,5]
[326680028,1715217074564,-868.14,0.00028509,2]
[326680029,1715217074580,-868.14,0.00028509,2]
[326680030,1715217074597,-414.79,0.00028509,2]
[326680031,1715217074616,-414.79,0.00028509,2]
[326680032,1715217074627,-868.14,0.00028509,2]
[326680033,1715217074639,-414.79,0.00028509,2]
[326680034,1715217074650,-868.14,0.00028509,2]
[326680035,1715217074662,-414.79,0.00028509,2]
[326680036,1715217074684,-868.14,0.00028509,2]
[326680037,1715217074696,-868.14,0.00028509,2]
[326680038,1715217074712,-1336.96,0.00028509,2]
[326680039,1715217074723,-414.28,0.00028509,2]
[326680040,1715217074735,-868.14,0.00028509,2]
[326680041,1715217074745,-414.79,0.00028509,2]
[326680042,1715217074755,-868.14,0.00028509,2]
[326680043,1715217074768,-1620.15,0.00028509,2]
[326680044,1715217074782,-868.14,0.00028509,2]
[326680045,1715217074793,-868.14,0.00028509,2]
[326680046,1715217074803,-1736.28,0.00028509,2]
[326680047,1715217074817,-160.0,0.00028518,2]
[326680048,1715217074832,-152.0,0.00028552,3]
[326680049,1715217074844,-1892.26206988,0.00028625,2]
[326680050,1715217074857,-856.53344368,0.000287,2]
[326680051,1715217074867,-157.050909,0.00028748,20]
[326680052,1715217074884,-521.61,0.00028756,2]
[326680053,1715217074897,-348.67,0.00028756,2]
[326680054,1715217074908,-4964.89,0.00028799,2]
[326680055,1715217074918,-68159.2649872,0.000288,2]